fUSD/lending_fUSD_20250309
["ID","MTS","AMOUNT","RATE_DAILY","PERIOD"]
[355768817,1741547279992,-520.98520629,8.566e-05,2]
[355768818,1741547280021,-519.82308657,8.566e-05,2]
[355768819,1741547280049,-500.0,8.566e-05,2]
[355768820,1741547280075,-500.0,8.566e-05,2]
[355768821,1741547280105,-500.0,8.566e-05,2]
[355768822,1741547280131,-500.0,8.566e-05,2]
[355768823,1741547280158,-500.0,8.566e-05,2]
[355768824,1741547280185,-508.57894673,8.566e-05,2]
[355768825,1741547280213,-500.0,8.566e-05,2]
[355768826,1741547280243,-500.0,8.566e-05,2]
[355768827,1741547280270,-506.90026733,8.566e-05,2]
[355768828,1741547280297,-505.41091758,8.566e-05,2]
[355768829,1741547280325,-507.6189858,8.566e-05,2]
[355768830,1741547280354,-500.0,8.566e-05,2]
[355768831,1741547280402,-517.84468504,8.566e-05,2]
[355768832,1741547280432,-509.63649932,8.566e-05,2]
[355768833,1741547280461,-1742.3436,8.566e-05,2]
[355768834,1741547280491,-4033.64,8.666e-05,2]
[355768835,1741547280519,-180.58,8.695e-05,2]
[355768836,1741547280547,-859.1,8.695e-05,2]
[355768837,1741547280798,-4600.42,8.695e-05,2]
[355768838,1741547280829,-314.9332,8.704e-05,2]
[355768839,1741547280857,-936.1814,8.704e-05,2]
[355768840,1741547280884,-345.858,8.739e-05,2]
[355768841,1741547280911,-2500.0,8.739e-05,2]
[355768842,1741547280937,-5990.10491724,8.804e-05,2]
[355768843,1741547280964,-600.14,8.838e-05,2]
[355768844,1741547280991,-500.0,8.838e-05,2]
[355768845,1741547281017,-703.47,8.838e-05,2]
[355768846,1741547281047,-500.0,8.838e-05,2]
[355768847,1741547281076,-1162.34651169,8.838e-05,2]
[355768852,1741547336023,226.7721669,0.00026625,30]
[355768922,1741547431576,-200.0,8.314e-05,2]
[355768924,1741547431586,-1325.73095997,8.665e-05,2]
[355768925,1741547431631,-4078.94746316,8.665e-05,2]
[355768926,1741547431640,-4734.4461224,8.739e-05,2]
[355768927,1741547431651,-1033.8199776,8.739e-05,2]
[355768928,1741547431660,-685.7384,8.739e-05,2]
[355768929,1741547431670,-150.0,8.837e-05,2]
[355768930,1741547431679,-500.0,8.838e-05,2]
[355768931,1741547431688,-986.94,8.838e-05,2]
[355768932,1741547431697,-944.67,8.838e-05,2]
[355768933,1741547431706,-1452.76,8.838e-05,2]
[355768934,1741547431715,-153.821543,8.838e-05,2]
[355768935,1741547431726,-500.0,8.838e-05,2]
[355768936,1741547431735,-268.287889,8.838e-05,2]
[355768937,1741547431745,-50.93165848,8.838e-05,2]
[355768938,1741547431768,-452.99834152,8.838e-05,2]
[355768939,1741547431777,-493.24165848,8.838e-05,2]
[355768940,1741547431798,-22.03834152,8.838e-05,2]
[355768941,1741547431808,-666.72,8.838e-05,2]
[355768942,1741547431818,-477.40773112,8.838e-05,2]
[355768943,1741547431912,-627.11226888,8.838e-05,2]
[355768944,1741547431923,-95.12708177,8.838e-05,2]
[355768945,1741547431935,-457.82291823,8.838e-05,2]
[355768946,1741547431945,-789.93,8.838e-05,2]
[355768947,1741547431954,-152.39489935,8.838e-05,2]
[355768948,1741547431975,-1349.56510065,8.838e-05,2]
[355768949,1741547431985,-655.93,8.838e-05,2]
[355768950,1741547431994,-839.95,8.838e-05,2]
[355768951,1741547432004,-605.92,8.838e-05,2]
[355768952,1741547432014,-983.43489935,8.838e-05,2]
[355768969,1741547439007,-2745.39510065,8.838e-05,2]
[355768970,1741547439017,-517.27,8.838e-05,2]
[355768971,1741547439026,-285.055887,8.838e-05,2]
[355768972,1741547439036,-558.63,8.838e-05,2]
[355768973,1741547439045,-622.34,8.838e-05,2]
[355768974,1741547439054,-796.86,8.838e-05,2]
[355768975,1741547439063,-153.821544,8.838e-05,2]
[355768976,1741547439073,-2428.27,8.838e-05,2]
[355768977,1741547439082,-715.15,8.838e-05,2]
[355768978,1741547439091,-956.29,8.838e-05,2]
[355768979,1741547439101,-1746.68,8.838e-05,2]
[355768980,1741547439110,-500.0,8.838e-05,2]
[355768981,1741547439119,-1732.4,8.838e-05,2]
[355768982,1741547439129,-1338.95,8.838e-05,2]
[355768983,1741547439138,-500.0,8.839e-05,2]
[355768984,1741547439148,-500.0,8.839e-05,2]
[355768985,1741547439157,-500.0,8.839e-05,2]
[355768986,1741547439167,-500.0,8.839e-05,2]
[355768987,1741547439176,-500.0,8.839e-05,2]
[355768988,1741547439186,-500.0,8.839e-05,2]
[355768989,1741547439195,-500.0,8.839e-05,2]
[355768990,1741547439205,-500.0,8.839e-05,2]
[355768991,1741547439215,-500.0,8.839e-05,2]
[355768992,1741547439224,-500.0,8.839e-05,2]
[355768993,1741547439234,-500.0,8.839e-05,2]
[355768994,1741547439243,-500.0,8.839e-05,2]
[355768995,1741547439253,-500.0,8.839e-05,2]
[355768996,1741547439263,-500.0,8.839e-05,2]
[355768997,1741547439276,-500.0,8.839e-05,2]
[355768998,1741547439286,-500.0,8.839e-05,2]
[355768999,1741547439299,-500.0,8.839e-05,2]
[355769000,1741547439308,-500.0,8.839e-05,2]
[355769001,1741547439318,-500.0,8.839e-05,2]
[355769002,1741547439327,-500.0,8.839e-05,2]
[355769003,1741547439339,-500.0,8.839e-05,2]
[355769004,1741547439348,-500.0,8.839e-05,2]
[355769005,1741547439358,-500.0,8.839e-05,2]
[355769006,1741547439368,-500.0,8.839e-05,2]
[355769007,1741547439378,-500.0,8.839e-05,2]
[355769008,1741547439387,-500.0,8.839e-05,2]
[355769009,1741547439397,-500.0,8.839e-05,2]
[355769010,1741547439406,-500.0,8.839e-05,2]
[355769011,1741547439416,-500.0,8.839e-05,2]
[355769012,1741547439426,-500.0,8.839e-05,2]
[355769013,1741547439436,-500.0,8.839e-05,2]
[355769014,1741547439446,-500.0,8.839e-05,2]
[355769015,1741547439456,-500.0,8.839e-05,2]
[355769016,1741547439466,-500.0,8.839e-05,2]
[355769017,1741547439475,-500.0,8.839e-05,2]
[355769018,1741547439487,-500.0,8.839e-05,2]
[355769020,1741547439497,-500.0,8.839e-05,2]
[355769021,1741547439506,-500.0,8.839e-05,2]
[355769022,1741547439515,-500.0,8.839e-05,2]
[355769023,1741547439525,-500.0,8.839e-05,2]
[355769024,1741547439534,-193.02250015,8.839e-05,2]
[355769025,1741547439544,-500.0,8.839e-05,2]
[355769026,1741547439553,-500.0,8.839e-05,2]
[355769027,1741547439563,-500.0,8.839e-05,2]
[355769028,1741547439572,-500.0,8.839e-05,2]
[355769029,1741547439581,-500.0,8.839e-05,2]
[355769030,1741547439591,-500.0,8.839e-05,2]
[355769031,1741547439600,-500.0,8.839e-05,2]
[355769032,1741547439610,-500.0,8.839e-05,2]
[355769033,1741547439619,-500.0,8.839e-05,2]
[355769034,1741547439629,-500.0,8.839e-05,2]
[355769035,1741547439638,-500.0,8.839e-05,2]
[355769036,1741547439648,-500.0,8.839e-05,2]
[355769037,1741547439658,-500.0,8.839e-05,2]
[355769038,1741547439667,-500.0,8.839e-05,2]
[355769039,1741547439677,-500.0,8.839e-05,2]
[355769040,1741547439686,-500.0,8.839e-05,2]
[355769041,1741547439696,-500.0,8.839e-05,2]
[355769042,1741547439705,-500.0,8.839e-05,2]
[355769043,1741547439715,-500.0,8.839e-05,2]
[355769044,1741547439725,-500.0,8.839e-05,2]
[355769045,1741547439736,-500.0,8.839e-05,2]
[355769046,1741547439746,-500.0,8.839e-05,2]
[355769047,1741547439755,-500.0,8.839e-05,2]
[355769048,1741547439764,-500.0,8.839e-05,2]
[355769049,1741547439774,-500.0,8.839e-05,2]
[355769050,1741547439783,-500.0,8.839e-05,2]
[355769051,1741547439792,-500.0,8.839e-05,2]
[355769052,1741547439802,-500.0,8.839e-05,2]
[355769053,1741547439812,-500.0,8.839e-05,2]
[355769054,1741547439821,-500.0,8.839e-05,2]
[355769055,1741547439830,-500.0,8.839e-05,2]
[355769056,1741547439840,-524.96,8.839e-05,2]
[355769057,1741547439849,-500.0,8.839e-05,2]
[355769058,1741547439858,-500.0,8.839e-05,2]
[355769059,1741547439868,-500.0,8.839e-05,2]
[355769060,1741547439877,-500.0,8.839e-05,2]
[355769061,1741547439886,-500.0,8.839e-05,2]
[355769062,1741547439896,-500.0,8.839e-05,2]
[355769063,1741547439906,-500.0,8.839e-05,2]
[355769064,1741547439916,-500.0,8.839e-05,2]
[355769065,1741547439926,-500.0,8.839e-05,2]
[355769066,1741547439935,-500.0,8.839e-05,2]
[355769067,1741547439945,-500.0,8.839e-05,2]
[355769068,1741547439954,-500.0,8.839e-05,2]
[355769069,1741547439964,-500.0,8.839e-05,2]
[355769070,1741547439973,-748.93,8.839e-05,2]
[355769071,1741547439984,-500.0,8.839e-05,2]
[355769072,1741547439994,-500.0,8.839e-05,2]
[355769073,1741547440003,-500.0,8.839e-05,2]
[355769074,1741547440012,-500.0,8.839e-05,2]
[355769075,1741547440022,-596.2,8.839e-05,2]
[355769076,1741547440031,-891.03,8.839e-05,2]
[355769077,1741547440040,-500.0,8.839e-05,2]
[355769078,1741547440050,-500.0,8.839e-05,2]
[355769079,1741547440059,-534.03,8.839e-05,2]
[355769080,1741547440069,-500.0,8.839e-05,2]
[355769081,1741547440079,-500.0,8.839e-05,2]
[355769082,1741547440088,-500.0,8.839e-05,2]
[355769083,1741547440097,-500.0,8.839e-05,2]
[355769084,1741547440107,-500.0,8.839e-05,2]
[355769085,1741547440116,-500.0,8.839e-05,2]
[355769086,1741547440126,-511.6058964,8.839e-05,2]
[355769087,1741547440135,-500.0,8.839e-05,2]
[355769088,1741547440145,-500.0,8.839e-05,2]
[355769089,1741547440155,-500.0,8.839e-05,2]
[355769090,1741547440164,-500.0,8.839e-05,2]
[355769091,1741547440174,-500.0,8.839e-05,2]
[355769092,1741547440183,-506.43443181,8.839e-05,2]
[355769093,1741547440193,-500.0,8.839e-05,2]
[355769094,1741547440202,-500.0,8.839e-05,2]
[355769095,1741547440212,-500.0,8.839e-05,2]
[355769096,1741547440221,-500.0,8.839e-05,2]
[355769097,1741547440233,-500.0,8.839e-05,2]
[355769098,1741547440245,-500.0,8.839e-05,2]
[355769099,1741547440254,-500.0,8.839e-05,2]
[355769100,1741547440263,-500.0,8.839e-05,2]
[355769101,1741547440273,-500.0,8.839e-05,2]
[355769102,1741547440283,-500.0,8.839e-05,2]
[355769103,1741547440295,-6618.18,8.839e-05,2]
[355769104,1741547440304,-500.0,8.839e-05,2]
[355769105,1741547440313,-575.14,8.839e-05,2]
[355769106,1741547440323,-500.0,8.839e-05,2]
[355769107,1741547440332,-500.0,8.839e-05,2]
[355769108,1741547440342,-519.48914118,8.839e-05,2]
[355769109,1741547440352,-500.0,8.839e-05,2]
[355769110,1741547440362,-500.0,8.839e-05,2]
[355769111,1741547440371,-618.88,8.839e-05,2]
[355769112,1741547440382,-836.16,8.839e-05,2]
[355769113,1741547440392,-1211.07,8.839e-05,2]
[355769114,1741547440402,-500.0,8.839e-05,2]
[355769115,1741547440411,-500.0,8.839e-05,2]
[355769116,1741547440421,-500.0,8.839e-05,2]
[355769117,1741547440430,-500.0,8.839e-05,2]
[355769118,1741547440439,-500.0,8.839e-05,2]
[355769119,1741547440449,-500.0,8.839e-05,2]
[355769120,1741547440458,-500.0,8.839e-05,2]
[355769121,1741547440467,-500.0,8.839e-05,2]
[355769122,1741547440477,-524.48,8.839e-05,2]
[355769123,1741547440487,-500.0,8.839e-05,2]
[355769124,1741547440497,-500.0,8.839e-05,2]
[355769125,1741547440506,-500.0,8.839e-05,2]
[355769126,1741547440516,-500.0,8.839e-05,2]
[355769127,1741547440525,-633.45,8.839e-05,2]
[355769128,1741547440534,-500.0,8.839e-05,2]
[355769129,1741547440544,-1636.6,8.839e-05,2]
[355769130,1741547440553,-610.35,8.839e-05,2]
[355769131,1741547440563,-500.0,8.839e-05,2]
[355769132,1741547440572,-500.0,8.839e-05,2]
[355769133,1741547440581,-993.06,8.839e-05,2]
[355769134,1741547440590,-500.0,8.839e-05,2]
[355769135,1741547440600,-500.0,8.839e-05,2]
[355769136,1741547440609,-949.73,8.839e-05,2]
[355769137,1741547440618,-628.2,8.839e-05,2]
[355769138,1741547440628,-500.0,8.839e-05,2]
[355769139,1741547440637,-500.0,8.839e-05,2]
[355769140,1741547440646,-831.63,8.839e-05,2]
[355769141,1741547440655,-693.19,8.839e-05,2]
[355769142,1741547440665,-393.42199255,8.839e-05,2]
[355769143,1741547440674,-607.2,8.839e-05,2]
[355769144,1741547440684,-500.0,8.839e-05,2]
[355769145,1741547440693,-500.0,8.839e-05,2]
[355769146,1741547440702,-500.0,8.839e-05,2]
[355769147,1741547440712,-1454.66,8.839e-05,2]
[355769148,1741547440720,-1211.0,8.839e-05,2]
[355769149,1741547440730,-500.0,8.839e-05,2]
[355769150,1741547440745,-666.96,8.839e-05,2]
[355769151,1741547440754,-500.0,8.839e-05,2]
[355769152,1741547440763,-500.0,8.839e-05,2]
[355769153,1741547440773,-540.48,8.839e-05,2]
[355769154,1741547440782,-604.86,8.839e-05,2]
[355769155,1741547440791,-655.77,8.839e-05,2]
[355769156,1741547440800,-500.0,8.839e-05,2]
[355769157,1741547440809,-500.0,8.839e-05,2]
[355769158,1741547440819,-7687.09,8.839e-05,2]
[355769159,1741547440829,-654.33,8.839e-05,2]
[355769160,1741547440838,-500.0,8.839e-05,2]
[355769161,1741547440848,-500.0,8.839e-05,2]
[355769162,1741547440857,-500.0,8.839e-05,2]
[355769163,1741547440867,-500.0,8.839e-05,2]
[355769164,1741547440876,-2987.12,8.839e-05,2]
[355769165,1741547440885,-500.0,8.839e-05,2]
[355769166,1741547440894,-266.15566348,8.839e-05,2]
[355769167,1741547440903,-500.0,8.839e-05,2]
[355769168,1741547440913,-850.2,8.839e-05,2]
[355769169,1741547440922,-500.0,8.839e-05,2]
[355769170,1741547440932,-735.89,8.839e-05,2]
[355769171,1741547440941,-500.0,8.839e-05,2]
[355769172,1741547440951,-500.0,8.839e-05,2]
[355769173,1741547440960,-676.15,8.839e-05,2]
[355769174,1741547440969,-500.0,8.839e-05,2]
[355769175,1741547440978,-733.58,8.839e-05,2]
[355769176,1741547440989,-615.86,8.839e-05,2]
[355769177,1741547440998,-500.0,8.839e-05,2]
[355769178,1741547441007,-500.0,8.84e-05,2]
[355769179,1741547441016,-500.0,8.84e-05,2]
[355769180,1741547441026,-500.0,8.84e-05,2]
[355769181,1741547441036,-500.0,8.84e-05,2]
[355769182,1741547441048,-500.0,8.84e-05,2]
[355769183,1741547441061,-500.0,8.84e-05,2]
[355769184,1741547441071,-500.0,8.84e-05,2]
[355769185,1741547441083,-500.0,8.84e-05,2]
[355769186,1741547441092,-955.19,8.939e-05,2]
[355769187,1741547441103,-6053.81,8.939e-05,2]
[355769188,1741547441114,-500.0,8.939e-05,2]
[355769189,1741547441123,-675.68,8.939e-05,2]
[355769190,1741547441134,-500.0,8.939e-05,2]
[355769191,1741547441144,-500.0,8.939e-05,2]
[355769192,1741547441154,-1078.34,8.939e-05,2]
[355769193,1741547441163,-1000.0,8.939e-05,2]
[355769194,1741547441172,-1179.94,8.939e-05,2]
[355769195,1741547441181,-978.84,8.939e-05,2]
[355769196,1741547441190,-738.69,8.939e-05,2]
[355769197,1741547441200,-500.0,8.939e-05,2]
[355769198,1741547441209,-462.91681813,8.939e-05,2]
[355769199,1741547441218,-1181.6,8.939e-05,2]
[355769200,1741547441227,-572.17,8.939e-05,2]
[355769201,1741547441236,-896.03,8.939e-05,2]
[355769202,1741547441246,-1000.0,9e-05,2]
[355769203,1741547441255,-1000.0,9e-05,2]
[355769204,1741547441264,-550.0,9e-05,2]
[355769205,1741547441274,-2500.0,9.013e-05,2]
[355769206,1741547441284,-150.0,9.041e-05,2]
[355769207,1741547441295,-550.0,9.041e-05,2]
[355769208,1741547441304,-4110.61820813,9.094e-05,2]
[355769209,1741547441314,-986.94,9.112e-05,2]
[355769210,1741547441323,-944.67,9.112e-05,2]
[355769211,1741547441334,-1452.76,9.112e-05,2]
[355769212,1741547441343,-153.821543,9.112e-05,2]
[355769213,1741547441353,-366.55963369,9.112e-05,2]
[355769214,1741547441362,-268.287889,9.112e-05,2]
[355769215,1741547441372,-503.93,9.112e-05,2]
[355769216,1741547441381,-515.28,9.112e-05,2]
[355769217,1741547441391,-666.72,9.112e-05,2]
[355769218,1741547441400,-1104.52,9.112e-05,2]
[355769219,1741547441409,-552.95,9.112e-05,2]
[355769220,1741547441419,-789.93,9.112e-05,2]
[355769221,1741547441429,-1501.96,9.112e-05,2]
[355769222,1741547441438,-655.93,9.112e-05,2]
[355769223,1741547441448,-839.95,9.112e-05,2]
[355769224,1741547441457,-605.92,9.112e-05,2]
[355769225,1741547441466,-3728.83,9.112e-05,2]
[355769226,1741547441476,-517.27,9.112e-05,2]
[355769227,1741547441486,-558.63,9.112e-05,2]
[355769228,1741547441496,-622.34,9.112e-05,2]
[355769229,1741547441505,-796.86,9.112e-05,2]
[355769230,1741547441514,-2428.27,9.112e-05,2]
[355769231,1741547441523,-715.15,9.112e-05,2]
[355769232,1741547441532,-956.29,9.112e-05,2]
[355769233,1741547441542,-1746.68,9.112e-05,2]
[355769234,1741547441551,-514.26,9.112e-05,2]
[355769235,1741547441561,-1732.4,9.112e-05,2]
[355769236,1741547441570,-1338.95,9.112e-05,2]
[355769237,1741547441579,-500.0,9.113e-05,2]
[355769238,1741547441588,-500.0,9.113e-05,2]
[355769239,1741547441598,-554.99895548,9.113e-05,2]
[355769240,1741547441607,-500.0,9.113e-05,2]
[355769241,1741547441617,-500.0,9.113e-05,2]
[355769242,1741547441626,-500.0,9.113e-05,2]
[355769243,1741547441635,-500.0,9.113e-05,2]
[355769244,1741547441644,-500.0,9.113e-05,2]
[355769245,1741547441654,-500.0,9.113e-05,2]
[355769246,1741547441663,-500.0,9.113e-05,2]
[355769247,1741547441672,-500.0,9.113e-05,2]
[355769248,1741547441682,-500.0,9.113e-05,2]
[355769249,1741547441691,-262.78054885,9.113e-05,2]
[355769250,1741547441701,-500.0,9.113e-05,2]
[355769251,1741547441710,-500.0,9.113e-05,2]
[355769252,1741547441719,-218.38,9.113e-05,2]
[355769253,1741547441729,-500.0,9.113e-05,2]
[355769254,1741547441738,-500.0,9.113e-05,2]
[355769255,1741547441747,-267.4,9.113e-05,2]
[355769256,1741547441757,-500.0,9.113e-05,2]
[355769257,1741547441767,-500.0,9.113e-05,2]
[355769258,1741547441776,-391.22402755,9.113e-05,2]
[355769259,1741547441785,-500.0,9.113e-05,2]
[355769260,1741547441796,-500.0,9.113e-05,2]
[355769261,1741547441805,-500.0,9.113e-05,2]
[355769262,1741547441816,-500.0,9.113e-05,2]
[355769263,1741547441826,-500.0,9.113e-05,2]
[355769264,1741547441835,-500.0,9.113e-05,2]
[355769265,1741547441846,-500.0,9.113e-05,2]
[355769266,1741547441855,-500.0,9.113e-05,2]
[355769267,1741547441865,-500.0,9.113e-05,2]
[355769268,1741547441875,-500.0,9.113e-05,2]
[355769269,1741547441885,-500.0,9.113e-05,2]
[355769270,1741547441894,-500.0,9.113e-05,2]
[355769271,1741547441903,-500.0,9.113e-05,2]
[355769272,1741547441913,-500.0,9.113e-05,2]
[355769273,1741547441922,-500.0,9.113e-05,2]
[355769274,1741547442115,-181.1074442,9.113e-05,2]
[355769275,1741547442126,-500.0,9.113e-05,2]
[355769276,1741547442135,-500.0,9.113e-05,2]
[355769277,1741547442145,-500.0,9.113e-05,2]
[355769278,1741547442154,-500.0,9.113e-05,2]
[355769279,1741547442163,-500.0,9.113e-05,2]
[355769280,1741547442173,-500.0,9.113e-05,2]
[355769281,1741547442182,-500.0,9.113e-05,2]
[355769282,1741547442192,-500.0,9.113e-05,2]
[355769283,1741547442201,-500.0,9.113e-05,2]
[355769284,1741547442211,-251.32,9.113e-05,2]
[355769285,1741547442221,-500.0,9.113e-05,2]
[355769286,1741547442230,-500.0,9.113e-05,2]
[355769287,1741547442239,-500.0,9.113e-05,2]
[355769288,1741547442249,-500.0,9.113e-05,2]
[355769289,1741547442258,-500.0,9.113e-05,2]
[355769290,1741547442267,-500.0,9.113e-05,2]
[355769291,1741547442277,-500.0,9.113e-05,2]
[355769292,1741547442286,-574.41061837,9.113e-05,2]
[355769293,1741547442296,-748.93,9.113e-05,2]
[355769294,1741547442308,-500.0,9.113e-05,2]
[355769295,1741547442318,-500.0,9.113e-05,2]
[355769296,1741547442327,-516.70826083,9.113e-05,2]
[355769297,1741547442336,-596.2,9.113e-05,2]
[355769298,1741547442347,-891.03,9.113e-05,2]
[355769300,1741547442356,-500.0,9.113e-05,2]
[355769302,1741547442366,-500.0,9.113e-05,2]
[355769304,1741547442375,-534.03,9.113e-05,2]
[355769305,1741547442385,-500.0,9.113e-05,2]
[355769307,1741547442395,-500.0,9.113e-05,2]
[355769308,1741547442404,-500.0,9.113e-05,2]
[355769309,1741547442414,-544.32,9.113e-05,2]
[355769310,1741547442423,-613.28,9.113e-05,2]
[355769311,1741547442433,-500.0,9.113e-05,2]
[355769312,1741547442443,-500.0,9.113e-05,2]
[355769313,1741547442452,-500.0,9.113e-05,2]
[355769314,1741547442462,-500.0,9.113e-05,2]
[355769316,1741547442472,-340.7635274,9.113e-05,2]
[355769318,1741547442482,-500.0,9.113e-05,2]
[355769319,1741547442492,-500.0,9.113e-05,2]
[355769320,1741547442501,-490.82524191,9.113e-05,2]
[355769321,1741547442511,-6618.18,9.113e-05,2]
[355769322,1741547442520,-500.0,9.113e-05,2]
[355769324,1741547442530,-575.14,9.113e-05,2]
[355769326,1741547442539,-500.0,9.113e-05,2]
[355769328,1741547442549,-500.0,9.113e-05,2]
[355769331,1741547442559,-836.16,9.113e-05,2]
[355769334,1741547442568,-1211.07,9.113e-05,2]
[355769336,1741547442579,-328.36683058,9.113e-05,2]
[355769337,1741547442588,-500.0,9.113e-05,2]
[355769338,1741547442598,-500.0,9.113e-05,2]
[355769339,1741547442608,-500.0,9.113e-05,2]
[355769340,1741547442618,-500.0,9.113e-05,2]
[355769341,1741547442628,-500.0,9.113e-05,2]
[355769342,1741547442638,-524.48,9.113e-05,2]
[355769343,1741547442648,-500.0,9.113e-05,2]
[355769344,1741547442658,-500.0,9.113e-05,2]
[355769345,1741547442667,-500.0,9.113e-05,2]
[355769346,1741547442677,-633.45,9.113e-05,2]
[355769347,1741547442687,-500.0,9.113e-05,2]
[355769348,1741547442697,-1636.6,9.113e-05,2]
[355769349,1741547442707,-610.35,9.113e-05,2]
[355769350,1741547442716,-500.0,9.113e-05,2]
[355769351,1741547442726,-500.0,9.113e-05,2]
[355769352,1741547442738,-993.06,9.113e-05,2]
[355769353,1741547442748,-500.0,9.113e-05,2]
[355769354,1741547442757,-949.73,9.113e-05,2]
[355769355,1741547442767,-628.2,9.113e-05,2]
[355769356,1741547442776,-500.0,9.113e-05,2]
[355769357,1741547442786,-500.0,9.113e-05,2]
[355769358,1741547442796,-831.63,9.113e-05,2]
[355769359,1741547442805,-693.19,9.113e-05,2]
[355769360,1741547442815,-607.2,9.113e-05,2]
[355769361,1741547442825,-500.0,9.113e-05,2]
[355769362,1741547442834,-1454.66,9.113e-05,2]
[355769363,1741547442843,-1211.0,9.113e-05,2]
[355769364,1741547442853,-500.0,9.113e-05,2]
[355769365,1741547442863,-666.96,9.113e-05,2]
[355769366,1741547442872,-500.0,9.113e-05,2]
[355769367,1741547442882,-540.48,9.113e-05,2]
[355769368,1741547442891,-604.86,9.113e-05,2]
[355769369,1741547442901,-655.77,9.113e-05,2]
[355769371,1741547442910,-7687.09,9.113e-05,2]
[355769373,1741547442920,-654.33,9.113e-05,2]
[355769375,1741547442930,-500.0,9.113e-05,2]
[355769377,1741547442940,-500.0,9.113e-05,2]
[355769379,1741547442949,-2987.12,9.113e-05,2]
[355769381,1741547442958,-500.0,9.113e-05,2]
[355769383,1741547442968,-500.0,9.113e-05,2]
[355769385,1741547442977,-850.2,9.113e-05,2]
[355769387,1741547442988,-500.0,9.113e-05,2]
[355769389,1741547442998,-735.89,9.113e-05,2]
[355769391,1741547443007,-500.0,9.113e-05,2]
[355769393,1741547443017,-676.15,9.113e-05,2]
[355769395,1741547443026,-500.0,9.113e-05,2]
[355769398,1741547443036,-733.58,9.113e-05,2]
[355769401,1741547443046,-615.86,9.113e-05,2]
[355769404,1741547443056,-344.61,9.113e-05,2]
[355769407,1741547443066,-150.0,9.145e-05,2]
[355769409,1741547443075,-550.0,9.145e-05,2]
[355769411,1741547443085,-3484.0714,9.155e-05,2]
[355769413,1741547443095,-677.7262,9.155e-05,2]
[355769415,1741547443104,-729.1943,9.155e-05,2]
[355769417,1741547443113,-1278.0,9.161e-05,2]
[355769419,1741547443123,-2032.0,9.161e-05,2]
[355769421,1741547443132,-290.664,9.161e-05,2]
[355769423,1741547443141,-657.544,9.161e-05,2]
[355769424,1741547443151,-571.0,9.161e-05,2]
[355769426,1741547443161,-1459.0,9.161e-05,2]
[355769428,1741547443170,-786.0,9.161e-05,2]
[355769430,1741547443180,-907.0,9.161e-05,2]
[355769432,1741547443189,-1270.0,9.161e-05,2]
[355769434,1741547443199,-1428.0,9.161e-05,2]
[355769436,1741547443208,-541.0,9.177e-05,2]
[355769438,1741547443218,-4076.0,9.177e-05,2]
[355769440,1741547443227,-955.19,9.213e-05,2]
[355769442,1741547443237,-6053.81,9.213e-05,2]
[355769444,1741547443246,-500.0,9.213e-05,2]
[355769445,1741547443256,-675.68,9.213e-05,2]
[355769446,1741547443265,-500.0,9.213e-05,2]
[355769447,1741547443275,-500.0,9.213e-05,2]
[355769448,1741547443285,-1078.34,9.213e-05,2]
[355769449,1741547443297,-1000.0,9.213e-05,2]
[355769450,1741547443307,-1179.94,9.213e-05,2]
[355769451,1741547443316,-978.84,9.213e-05,2]
[355769452,1741547443325,-738.69,9.213e-05,2]
[355769453,1741547443334,-1181.6,9.213e-05,2]
[355769454,1741547443345,-572.17,9.213e-05,2]
[355769455,1741547443355,-896.03,9.213e-05,2]
[355769456,1741547443364,-782.10919732,9.22e-05,2]
[355769457,1741547443375,-1012.0,9.239e-05,2]
[355769458,1741547443385,-3932.0,9.239e-05,2]
[355769459,1741547443394,-199.688,9.239e-05,2]
[355769460,1741547443403,-1113.0,9.239e-05,2]